fUST/lending_fUST_20250206
["ID","MTS","AMOUNT","RATE_DAILY","PERIOD"]
[351824526,1738803049751,-500.0,0.00013835,2]
[351824527,1738803049760,-835.2,0.00013835,2]
[351824528,1738803049770,-500.0,0.00013835,2]
[351824529,1738803049780,-2330.04,0.00013835,2]
[351824530,1738803049790,-500.0,0.00013835,2]
[351824531,1738803049799,-900.66,0.00013835,2]
[351824532,1738803049809,-500.0,0.00013835,2]
[351824533,1738803049818,-465.97352666,0.00013835,2]
[351824534,1738803049828,-151.0,0.00013835,2]
[351824535,1738803049837,-151.0,0.00013835,2]
[351824536,1738803049847,-500.0,0.00013835,2]
[351824537,1738803049856,-5525.71,0.00013835,2]
[351824538,1738803049866,-500.0,0.00013835,2]
[351824539,1738803049875,-90673.23,0.00013835,2]
[351824540,1738803049886,-500.0,0.00013835,2]
[351824541,1738803049895,-500.0,0.00013835,2]
[351824543,1738803049904,-500.0,0.00013835,2]
[351824545,1738803049913,-2354.55,0.00013835,2]
[351824547,1738803049923,-500.0,0.00013835,2]
[351824549,1738803049932,-151.0,0.00013835,2]
[351824551,1738803049942,-151.0,0.00013835,2]
[351824553,1738803049952,-500.0,0.00013835,2]
[351824555,1738803049962,-10906.06,0.00013835,2]
[351824557,1738803049971,-500.0,0.00013835,2]
[351824558,1738803049981,-30664.59,0.00013835,2]
[351824559,1738803049990,-244.012348,0.00013835,2]
[351824561,1738803049999,-244.012348,0.00013835,2]
[351824562,1738803050009,-1708.14,0.00013835,2]
[351824564,1738803050018,-592.87,0.00013835,2]
[351824566,1738803050027,-541.16,0.00013835,2]
[351824567,1738803050037,-500.0,0.00013835,2]
[351824568,1738803050047,-244.012348,0.00013835,2]
[351824569,1738803050056,-500.0,0.00013835,2]
[351824570,1738803050065,-244.012348,0.00013835,2]
[351824571,1738803050074,-4526.78,0.00013835,2]
[351824572,1738803050084,-500.0,0.00013835,2]
[351824573,1738803050093,-500.0,0.00013835,2]
[351824574,1738803050102,-2734.32,0.00013835,2]
[351824575,1738803050111,-1009.2,0.00013835,2]
[351824576,1738803050121,-500.0,0.00013835,2]
[351824577,1738803050130,-500.0,0.00013835,2]
[351824578,1738803050141,-2571.25,0.00013835,2]
[351824579,1738803050150,-603.92,0.00013835,2]
[351824580,1738803050159,-151.0,0.00013835,2]
[351824581,1738803050168,-151.0,0.00013835,2]
[351824582,1738803050179,-151.0,0.00013835,2]
[351824583,1738803050189,-500.0,0.00013835,2]
[351824584,1738803050199,-151.0,0.00013835,2]
[351824585,1738803050210,-151.0,0.00013835,2]
[351824586,1738803050220,-1746.57,0.00013835,2]
[351824587,1738803050231,-500.0,0.00013835,2]
[351824588,1738803050243,-636.6,0.00013835,2]
[351824589,1738803050253,-151.0,0.00013835,2]
[351824590,1738803050262,-500.0,0.00013835,2]
[351824591,1738803050272,-549.68,0.00013835,2]
[351824592,1738803050282,-500.0,0.00013835,2]
[351824593,1738803050291,-537.92,0.00013835,2]
[351824594,1738803050300,-1402.45,0.00013835,2]
[351824595,1738803050309,-500.0,0.00013835,2]
[351824596,1738803050318,-366.09394727,0.00013835,2]
[351824597,1738803050328,-1612.45,0.00013835,2]
[351824598,1738803050338,-500.0,0.00013835,2]
[351824599,1738803050347,-2704.27,0.00013835,2]
[351824600,1738803050357,-887.08,0.00013835,2]
[351824601,1738803050367,-500.0,0.00013835,2]
[351824602,1738803050378,-151.0,0.00013835,2]
[351824603,1738803050388,-151.0,0.00013835,2]
[351824604,1738803050397,-500.0,0.00013835,2]
[351824605,1738803050407,-6590.01,0.00013835,2]
[351824606,1738803050416,-500.0,0.00013835,2]
[351824607,1738803050426,-508.21,0.00013835,2]
[351824608,1738803050435,-500.0,0.00013835,2]
[351824609,1738803050444,-500.0,0.00013835,2]
[351824610,1738803050454,-500.0,0.00013835,2]
[351824611,1738803050463,-3343.73,0.00013835,2]
[351824612,1738803050474,-674.99,0.00013835,2]
[351824613,1738803050483,-500.0,0.00013835,2]
[351824614,1738803050493,-1155.92,0.00013835,2]
[351824615,1738803050503,-2546.37,0.00013835,2]
[351824616,1738803050513,-500.0,0.00013835,2]
[351824617,1738803050523,-151.0,0.00013835,2]
[351824618,1738803050532,-151.0,0.00013835,2]
[351824619,1738803050542,-500.0,0.00013835,2]
[351824620,1738803050551,-500.0,0.00013835,2]
[351824621,1738803050561,-7442.5,0.00013835,2]
[351824622,1738803050570,-500.0,0.00013835,2]
[351824623,1738803050583,-577.85,0.00013835,2]
[351824624,1738803050593,-500.0,0.00013835,2]
[351824625,1738803050603,-500.0,0.00013835,2]
[351824626,1738803050613,-500.0,0.00013835,2]
[351824627,1738803050625,-824.85,0.00013835,2]
[351824628,1738803050636,-500.0,0.00013835,2]
[351824629,1738803050646,-2423.79,0.00013835,2]
[351824630,1738803050658,-522.33,0.00013835,2]
[351824631,1738803050669,-500.0,0.00013835,2]
[351824632,1738803050679,-151.0,0.00013835,2]
[351824633,1738803050689,-500.0,0.00013835,2]
[351824634,1738803050698,-154.119608,0.00013835,2]
[351824635,1738803050709,-537.24,0.00013835,2]
[351824636,1738803050719,-3526.16,0.00013835,2]
[351824637,1738803050729,-587.57,0.00013835,2]
[351824638,1738803050739,-1178.59,0.00013835,2]
[351824639,1738803050749,-500.0,0.00013835,2]
[351824640,1738803050759,-500.0,0.00013835,2]
[351824641,1738803050769,-423.46014296,0.00013835,2]
[351824642,1738803050780,-500.0,0.00013835,2]
[351824643,1738803050790,-1376.48,0.00013835,2]
[351824644,1738803050799,-717.71,0.00013835,2]
[351824645,1738803050809,-500.0,0.00013835,2]
[351824646,1738803050819,-500.0,0.00013835,2]
[351824647,1738803050829,-874.22,0.00013835,2]
[351824648,1738803050839,-151.0,0.00013835,2]
[351824649,1738803050849,-420.0,0.00013839,2]
[351824650,1738803050859,-500.0,0.00013873,2]
[351824651,1738803050869,-500.0,0.00013873,2]
[351824652,1738803050879,-500.0,0.00013873,2]
[351824653,1738803050889,-500.0,0.00013873,2]
[351824654,1738803050899,-504.19265232,0.00013873,2]
[351824655,1738803050911,-12502.07957306,0.0001389,2]
[351824656,1738803050921,-796.9060457,0.00013967,2]
[351824657,1738803050932,-869.73,0.00013972,2]
[351824658,1738803050944,-500.0,0.00013972,2]
[351824659,1738803050956,-500.0,0.00013972,2]
[351824660,1738803050966,-500.0,0.00013972,2]
[351824661,1738803050978,-500.0,0.00013972,2]
[351824662,1738803050988,-532.14,0.00013972,2]
[351824663,1738803050997,-500.0,0.00013972,2]
[351824664,1738803051007,-151.0,0.00013972,2]
[351824665,1738803051017,-500.0,0.00013972,2]
[351824666,1738803051028,-500.0,0.00013972,2]
[351824667,1738803051037,-500.0,0.00013972,2]
[351824668,1738803051048,-541.9,0.00013972,2]
[351824669,1738803051057,-500.0,0.00013972,2]
[351824670,1738803051069,-500.0,0.00013972,2]
[351824671,1738803051082,-500.0,0.00013972,2]
[351824672,1738803051091,-500.0,0.00013972,2]
[351824673,1738803051100,-500.0,0.00013972,2]
[351824674,1738803051110,-500.0,0.00013972,2]
[351824675,1738803051121,-500.0,0.00013972,2]
[351824676,1738803051130,-500.0,0.00013972,2]
[351824677,1738803051140,-500.0,0.00013972,2]
[351824678,1738803051150,-500.0,0.00013972,2]
[351824679,1738803051162,-1172.11,0.00013972,2]
[351824680,1738803051172,-666.06,0.00013972,2]
[351824681,1738803051185,-500.0,0.00013972,2]
[351824682,1738803051195,-500.0,0.00013972,2]
[351824683,1738803051205,-654.9,0.00013972,2]
[351824684,1738803051215,-500.0,0.00013972,2]
[351824685,1738803051224,-500.0,0.00013972,2]
[351824686,1738803051234,-500.0,0.00013972,2]
[351824687,1738803051243,-500.0,0.00013972,2]
[351824688,1738803051253,-500.0,0.00013972,2]
[351824689,1738803051262,-500.0,0.00013972,2]
[351824690,1738803051272,-500.0,0.00013972,2]
[351824691,1738803051282,-500.0,0.00013972,2]
[351824692,1738803051291,-866.1,0.00013972,2]
[351824693,1738803051301,-151.0,0.00013972,2]
[351824694,1738803051311,-500.0,0.00013972,2]
[351824695,1738803051321,-914.03,0.00013972,2]
[351824696,1738803051331,-644.59,0.00013972,2]
[351824697,1738803051341,-500.0,0.00013972,2]
[351824698,1738803051351,-582.95,0.00013972,2]
[351824699,1738803051360,-539.55,0.00013972,2]
[351824700,1738803051370,-500.0,0.00013972,2]
[351824701,1738803051381,-500.0,0.00013972,2]
[351824702,1738803051392,-500.0,0.00013972,2]
[351824703,1738803051402,-500.0,0.00013972,2]
[351824704,1738803051411,-151.0,0.00013972,2]
[351824705,1738803051421,-296.795859,0.00013972,2]
[351824706,1738803051431,-500.0,0.00013972,2]
[351824707,1738803051441,-500.0,0.00013972,2]
[351824708,1738803051450,-500.0,0.00013972,2]
[351824709,1738803051460,-724.25,0.00013972,2]
[351824710,1738803051470,-500.0,0.00013972,2]
[351824711,1738803051480,-500.0,0.00013972,2]
[351824712,1738803051491,-500.0,0.00013972,2]
[351824713,1738803051500,-500.0,0.00013972,2]
[351824714,1738803051510,-690.79,0.00013972,2]
[351824715,1738803051520,-500.0,0.00013972,2]
[351824716,1738803051530,-1476.75,0.00013972,2]
[351824717,1738803051540,-500.0,0.00013972,2]
[351824718,1738803051550,-1000.0,0.00013972,2]
[351824719,1738803051561,-500.0,0.00013972,2]
[351824720,1738803051571,-185.72420012,0.00013972,2]
[351824721,1738803051585,-642.4,0.00013972,2]
[351824722,1738803051595,-324.04764421,0.00013972,2]
[351824723,1738803051606,-921.33,0.00013972,2]
[351824724,1738803051617,-500.0,0.00013972,2]
[351824725,1738803051627,-500.0,0.00013972,2]
[351824726,1738803051638,-541.62,0.00013972,2]
[351824727,1738803051648,-1177.62,0.00013972,2]
[351824728,1738803051660,-1506.78,0.00013972,2]
[351824729,1738803051671,-151.0,0.00013972,2]
[351824730,1738803051681,-151.0,0.00013972,2]
[351824731,1738803051691,-500.0,0.00013972,2]
[351824732,1738803051701,-1246.23,0.00013972,2]
[351824733,1738803051711,-755.61,0.00013972,2]
[351824734,1738803051721,-500.0,0.00013972,2]
[351824735,1738803051731,-500.0,0.00013972,2]
[351824736,1738803051742,-500.0,0.00013972,2]
[351824737,1738803051752,-567.6,0.00013972,2]
[351824738,1738803051762,-500.0,0.00013972,2]
[351824739,1738803051772,-151.0,0.00013972,2]
[351824740,1738803051783,-500.0,0.00013972,2]
[351824741,1738803051793,-151.0,0.00013972,2]
[351824742,1738803051804,-707.38,0.00013972,2]
[351824743,1738803051814,-151.0,0.00013972,2]
[351824744,1738803051825,-341.13655062,0.00013972,2]
[351824745,1738803052088,-246.05344938,0.00013972,2]
[351824746,1738803052098,-214.95723713,0.00013972,2]
[351824747,1738803052116,-285.04276287,0.00013972,2]
[351824748,1738803052125,-500.0,0.00013972,2]
[351824749,1738803052137,-849.94,0.00013972,2]
[351824750,1738803052147,-1075.97,0.00013972,2]
[351824751,1738803052157,-678.8,0.00013972,2]
[351824752,1738803052167,-500.0,0.00013972,2]
[351824753,1738803052177,-500.0,0.00013972,2]
[351824754,1738803052187,-910.4,0.00013972,2]
[351824755,1738803052197,-1032.19,0.00013972,2]
[351824756,1738803052211,-2495.67,0.00013972,2]
[351824757,1738803052221,-500.0,0.00013972,2]
[351824758,1738803052231,-500.0,0.00013972,2]
[351824759,1738803052241,-500.0,0.00013972,2]
[351824760,1738803052252,-1635.51,0.00013972,2]
[351824761,1738803052262,-500.0,0.00013972,2]
[351824762,1738803052272,-500.0,0.00013972,2]
[351824763,1738803052282,-151.0,0.00013972,2]
[351824764,1738803052292,-620.92,0.00013972,2]
[351824765,1738803052303,-2605.45,0.00013972,2]
[351824766,1738803052312,-586.49,0.00013972,2]
[351824767,1738803052322,-151.0,0.00013972,2]
[351824768,1738803052332,-500.0,0.00013972,2]
[351824769,1738803052342,-500.0,0.00013972,2]
[351824770,1738803052352,-500.0,0.00013972,2]
[351824771,1738803052362,-500.0,0.00013972,2]
[351824772,1738803052372,-500.0,0.00013972,2]
[351824773,1738803052381,-500.0,0.00013972,2]
[351824774,1738803052392,-530.55,0.00013972,2]
[351824775,1738803052403,-500.0,0.00013972,2]
[351824776,1738803052412,-500.0,0.00013972,2]
[351824777,1738803052423,-500.0,0.00013972,2]
[351824778,1738803052433,-500.0,0.00013972,2]
[351824779,1738803052443,-763.57,0.00013972,2]
[351824780,1738803052454,-1251.54,0.00013972,2]
[351824781,1738803052464,-1138.0,0.00013972,2]
[351824782,1738803052474,-169.9975865,0.00013972,2]
[351824783,1738803052489,-470.2024135,0.00013972,2]
[351824784,1738803052500,-1170.47,0.00013972,2]
[351824785,1738803052510,-589.78484715,0.00013972,2]
[351824786,1738803052522,-493.67515285,0.00013972,2]
[351824787,1738803052532,-629.32,0.00013972,2]
[351824788,1738803052543,-334.94330369,0.00013972,2]
[351824789,1738803052554,-738.14,0.00013972,2]
[351824790,1738803052565,-607.21,0.00013972,2]
[351824791,1738803052729,-500.0,0.00013972,2]
[351824792,1738803052739,-151.0,0.00013972,2]
[351824793,1738803052750,-636.81,0.00013972,2]
[351824794,1738803052759,-151.0,0.00013972,2]
[351824795,1738803052769,-957.88,0.00013972,2]
[351824796,1738803052779,-500.0,0.00013972,2]
[351824797,1738803052788,-3269.94,0.00013972,2]
[351824798,1738803052798,-500.0,0.00013972,2]
[351824799,1738803052807,-779.77,0.00013972,2]
[351824800,1738803052817,-500.0,0.00013972,2]
[351824801,1738803052828,-500.0,0.00013972,2]
[351824802,1738803052838,-534.68,0.00013972,2]
[351824803,1738803052847,-1654.12,0.00013972,2]
[351824804,1738803052857,-500.0,0.00013972,2]
[351824805,1738803052867,-704.97,0.00013972,2]
[351824806,1738803052877,-500.0,0.00013972,2]
[351824807,1738803052889,-809.69,0.00013972,2]
[351824808,1738803052898,-701.54,0.00013972,2]
[351824809,1738803052908,-1290.11,0.00013972,2]
[351824810,1738803052918,-1344.92,0.00013972,2]
[351824811,1738803052928,-505.64,0.00013972,2]
[351824812,1738803052937,-500.0,0.00013972,2]
[351824813,1738803052947,-500.0,0.00013972,2]
[351824814,1738803052957,-500.0,0.00013972,2]
[351824815,1738803052967,-612.19,0.00013972,2]
[351824816,1738803052977,-1239.7,0.00013972,2]
[351824817,1738803052987,-649.83,0.00013972,2]
[351824818,1738803052996,-598.19,0.00013972,2]
[351824819,1738803053006,-500.0,0.00013972,2]
[351824820,1738803053016,-500.0,0.00013972,2]
[351824821,1738803053026,-500.0,0.00013972,2]
[351824822,1738803053036,-432.178419,0.00013972,2]
[351824823,1738803053045,-432.178419,0.00013972,2]
[351824824,1738803053055,-500.0,0.00013972,2]
[351824825,1738803053065,-432.178419,0.00013972,2]
[351824826,1738803053075,-432.178419,0.00013972,2]
[351824827,1738803053085,-252.24007145,0.00013972,2]
[351824828,1738803053095,-500.0,0.00013972,2]
[351824829,1738803053104,-500.0,0.00013972,2]
[351824830,1738803053114,-154.3508,0.00013972,2]
[351824831,1738803053124,-500.0,0.00013972,2]
[351824832,1738803053134,-151.0,0.00013972,2]
[351824833,1738803053143,-500.0,0.00013972,2]
[351824834,1738803053152,-151.0,0.00013972,2]
[351824835,1738803053163,-284.400599,0.00013972,2]
[351824836,1738803053173,-151.0,0.00013972,2]
[351824837,1738803053183,-151.0,0.00013972,2]
[351824838,1738803053193,-229.884813,0.00013972,2]
[351824839,1738803053203,-229.884813,0.00013972,2]
[351824840,1738803053213,-747.81,0.00013972,2]
[351824841,1738803053224,-229.884813,0.00013972,2]
[351824842,1738803053234,-229.884813,0.00013972,2]
[351824843,1738803053243,-501.16,0.00013972,2]
[351824844,1738803053253,-500.0,0.00013972,2]
[351824845,1738803053263,-500.0,0.00013972,2]
[351824846,1738803053273,-500.0,0.00013972,2]
[351824847,1738803053283,-816.87,0.00013972,2]
[351824848,1738803053292,-500.0,0.00013972,2]
[351824849,1738803053302,-657.56,0.00013972,2]
[351824850,1738803053312,-215.92803,0.00013972,2]
[351824851,1738803053323,-500.0,0.00013972,2]
[351824852,1738803053333,-500.0,0.00013972,2]
[351824853,1738803053343,-2388.93,0.00013972,2]
[351824854,1738803053353,-500.0,0.00013972,2]
[351824855,1738803053362,-500.0,0.00013972,2]
[351824856,1738803053371,-809.49,0.00013972,2]
[351824857,1738803053381,-151.0,0.00013972,2]
[351824858,1738803053391,-510.12,0.00013972,2]
[351824859,1738803053400,-2624.09,0.00013972,2]
[351824860,1738803053409,-500.0,0.00013972,2]
[351824861,1738803053418,-502.3798999,0.00013972,2]
[351824862,1738803053427,-577.25341489,0.00013972,2]
[351824863,1738803053437,-919.46,0.00013972,2]
[351824864,1738803053446,-7801.92,0.00013972,2]
[351824865,1738803053456,-500.0,0.00013972,2]
[351824866,1738803053466,-634.26,0.00013972,2]
[351824867,1738803053475,-712.74,0.00013972,2]
[351824868,1738803053484,-500.0,0.00013972,2]
[351824869,1738803053494,-1131.14,0.00013972,2]
[351824870,1738803053504,-500.0,0.00013972,2]
[351824871,1738803053515,-500.0,0.00013972,2]
[351824872,1738803053525,-500.0,0.00013972,2]
[351824873,1738803053536,-500.0,0.00013972,2]
[351824874,1738803053546,-500.0,0.00013972,2]
[351824875,1738803053557,-169.99447994,0.00013972,2]
[351824876,1738803053567,-500.0,0.00013972,2]
[351824877,1738803053579,-1005.72,0.00013972,2]
[351824878,1738803053589,-500.0,0.00013972,2]
[351824879,1738803053599,-1934.13379319,0.00013972,2]
[351824880,1738803053614,-754.43019429,0.00013972,2]
[351824881,1738803054555,-500.0,0.00013698,2]
[351824882,1738803054566,-500.0,0.00013698,2]
[351824883,1738803054579,-500.0,0.00013698,2]
[351824884,1738803054588,-1613.77244737,0.00013756,2]
[351824885,1738803054826,-179.57556281,0.00013598,2]
[351824886,1738803054837,-500.0,0.00013698,2]
[351824887,1738803054846,-107.82443427,0.00013698,2]
[351824888,1738803054858,-392.17556573,0.00013698,2]
[351824889,1738803054867,-10888.30712569,0.00013756,2]
[351824890,1738803054877,-151.0,0.00013835,2]
[351824891,1738803054886,-500.0,0.00013835,2]
[351824892,1738803054895,-500.0,0.00013835,2]
[351824893,1738803054904,-500.0,0.00013835,2]
[351824894,1738803054914,-2427.05656651,0.00013972,2]
[351824895,1738803054926,-4726.24042785,0.00013972,2]
[351824896,1738803054939,-23032.64901816,0.00013972,2]
[351824897,1738803054949,-500.0,0.00013972,2]
[351824898,1738803054958,-1360.27,0.00013972,2]
[351824899,1738803054968,-606.05,0.00013972,2]
[351824900,1738803054978,-4867.75,0.00013972,2]
[351824901,1738803054989,-769.1,0.00013972,2]
[351824902,1738803054998,-4166.49,0.00013972,2]
[351824903,1738803055007,-1268.44,0.00013972,2]
[351824904,1738803055017,-500.0,0.00013972,2]
[351824905,1738803055028,-500.0,0.00013972,2]
[351824906,1738803055037,-2381.7,0.00013972,2]
[351824907,1738803055047,-500.0,0.00013972,2]
[351824908,1738803055057,-517.67,0.00013972,2]
[351824909,1738803055066,-500.39,0.00013972,2]
[351824910,1738803055076,-5011.7,0.00013972,2]
[351824911,1738803055087,-5910.57,0.00013972,2]
[351824912,1738803055099,-151.0,0.00013972,2]
[351824913,1738803055110,-500.0,0.00013972,2]
[351824914,1738803055120,-500.0,0.00013972,2]
[351824915,1738803055129,-1917.48,0.00013972,2]
[351824916,1738803055139,-523.55,0.00013972,2]
[351824917,1738803055148,-2136.58,0.00013972,2]
[351824918,1738803055157,-534.39,0.00013972,2]
[351824919,1738803055166,-500.0,0.00013972,2]
[351824920,1738803055175,-500.0,0.00013972,2]
[351824921,1738803055185,-663.78,0.00013972,2]
[351824922,1738803055195,-500.0,0.00013972,2]
[351824923,1738803055204,-994.94,0.00013972,2]
[351824924,1738803055214,-500.0,0.00013972,2]
[351824925,1738803055222,-877.94,0.00013972,2]
[351824926,1738803055232,-500.0,0.00013972,2]
[351824927,1738803055241,-500.0,0.00013972,2]
[351824928,1738803055251,-940.35,0.00013972,2]
[351824929,1738803055260,-500.0,0.00013972,2]
[351824930,1738803055270,-500.0,0.00013972,2]
[351824931,1738803055279,-500.0,0.00013972,2]
[351824932,1738803055289,-500.0,0.00013972,2]
[351824933,1738803055299,-500.0,0.00013972,2]
[351824934,1738803055308,-1357.64,0.00013972,2]
[351824935,1738803055317,-500.0,0.00013972,2]
[351824936,1738803055327,-383.13061394,0.00013972,2]
[351824937,1738803055336,-2232.97,0.00013972,2]
[351824938,1738803055346,-151.0,0.00013972,2]
[351824939,1738803055355,-500.0,0.00013972,2]
[351824940,1738803055364,-835.2,0.00013972,2]
[351824941,1738803055374,-500.0,0.00013972,2]
[351824942,1738803055383,-2330.04,0.00013972,2]
[351824943,1738803055393,-500.0,0.00013972,2]
[351824944,1738803055402,-900.66,0.00013972,2]
[351824945,1738803055411,-500.0,0.00013972,2]
[351824946,1738803055421,-151.0,0.00013972,2]
[351824947,1738803055430,-500.0,0.00013972,2]
[351824948,1738803055439,-5525.71,0.00013972,2]
[351824949,1738803055449,-500.0,0.00013972,2]
[351824950,1738803055458,-90673.23,0.00013972,2]
[351824951,1738803055468,-500.0,0.00013972,2]
[351824952,1738803055477,-500.0,0.00013972,2]
[351824953,1738803055487,-2354.55,0.00013972,2]
[351824954,1738803055496,-500.0,0.00013972,2]
[351824955,1738803055505,-151.0,0.00013972,2]
[351824956,1738803055514,-500.0,0.00013972,2]
[351824957,1738803055524,-10906.06,0.00013972,2]
[351824958,1738803055534,-30664.59,0.00013972,2]
[351824959,1738803055544,-1708.14,0.00013972,2]
[351824960,1738803055553,-244.012348,0.00013972,2]
[351824961,1738803055563,-592.87,0.00013972,2]
[351824962,1738803055573,-541.16,0.00013972,2]
[351824963,1738803055586,-500.0,0.00013972,2]
[351824964,1738803055596,-500.0,0.00013972,2]
[351824965,1738803055605,-244.012348,0.00013972,2]
[351824966,1738803055751,-4526.78,0.00013972,2]
[351824967,1738803055761,-500.0,0.00013972,2]
[351824968,1738803055770,-500.0,0.00013972,2]
[351824969,1738803055779,-2734.32,0.00013972,2]
[351824970,1738803055788,-1009.2,0.00013972,2]
[351824971,1738803055798,-500.0,0.00013972,2]
[351824972,1738803055807,-500.0,0.00013972,2]
[351824973,1738803055816,-2571.25,0.00013972,2]
[351824974,1738803055825,-603.92,0.00013972,2]
[351824975,1738803055835,-151.0,0.00013972,2]
[351824976,1738803055845,-500.0,0.00013972,2]
[351824977,1738803055855,-151.0,0.00013972,2]
[351824978,1738803055864,-1746.57,0.00013972,2]
[351824979,1738803055874,-500.0,0.00013972,2]
[351824980,1738803055884,-636.6,0.00013972,2]
[351824981,1738803055896,-500.0,0.00013972,2]
[351824982,1738803055905,-549.68,0.00013972,2]
[351824983,1738803055914,-353.73561187,0.00013972,2]
[351824984,1738803055924,-537.92,0.00013972,2]
[351824985,1738803055933,-1402.45,0.00013972,2]
[351824986,1738803055943,-500.0,0.00013972,2]
[351824987,1738803055952,-1612.45,0.00013972,2]
[351824988,1738803055962,-500.0,0.00013972,2]
[351824989,1738803055973,-2704.27,0.00013972,2]
[351824990,1738803055983,-887.08,0.00013972,2]
[351824991,1738803055994,-500.0,0.00013972,2]
[351824992,1738803056004,-151.0,0.00013972,2]
[351824993,1738803056013,-500.0,0.00013972,2]
[351824994,1738803056023,-6590.01,0.00013972,2]
[351824995,1738803056032,-508.21,0.00013972,2]
[351824996,1738803056042,-500.0,0.00013972,2]
[351824997,1738803056051,-500.0,0.00013972,2]
[351824998,1738803056061,-500.0,0.00013972,2]
[351824999,1738803056071,-3343.73,0.00013972,2]
[351825000,1738803056081,-674.99,0.00013972,2]
[351825001,1738803056090,-1155.92,0.00013972,2]
[351825002,1738803056100,-2546.37,0.00013972,2]
[351825003,1738803056110,-500.0,0.00013972,2]
[351825004,1738803056119,-151.0,0.00013972,2]
[351825005,1738803056129,-500.0,0.00013972,2]
[351825006,1738803056139,-507.83850901,0.00013972,2]
[351825007,1738803056148,-7442.5,0.00013972,2]
[351825008,1738803056158,-500.0,0.00013972,2]
[351825009,1738803056167,-577.85,0.00013972,2]
[351825010,1738803056176,-500.0,0.00013972,2]
[351825011,1738803056187,-617.33776272,0.00013972,2]
[351825012,1738803056197,-500.0,0.00013972,2]
[351825013,1738803056207,-824.85,0.00013972,2]
[351825014,1738803056216,-500.0,0.00013972,2]
[351825015,1738803056226,-2423.79,0.00013972,2]
[351825016,1738803056235,-522.33,0.00013972,2]
[351825017,1738803056245,-500.0,0.00013972,2]
[351825018,1738803056254,-500.0,0.00013972,2]
[351825019,1738803056264,-537.24,0.00013972,2]
[351825020,1738803056274,-3526.16,0.00013972,2]
[351825021,1738803056283,-587.57,0.00013972,2]
[351825022,1738803056293,-1178.59,0.00013972,2]
[351825023,1738803056302,-500.0,0.00013972,2]
[351825024,1738803056311,-500.0,0.00013972,2]
[351825025,1738803056320,-500.0,0.00013972,2]
[351825026,1738803056329,-1376.48,0.00013972,2]
[351825027,1738803056340,-717.71,0.00013972,2]
[351825028,1738803056349,-500.0,0.00013972,2]
[351825029,1738803056359,-500.0,0.00013972,2]
[351825030,1738803056368,-874.22,0.00013972,2]
[351825031,1738803056378,-261.495677,0.00013972,2]
[351825032,1738803056390,-500.0,0.00013972,2]
[351825033,1738803056399,-500.0,0.00013973,2]
[351825034,1738803056408,-500.3900539,0.00013973,2]
[351825035,1738803056420,-500.0,0.00013973,2]
[351825036,1738803056430,-152.08443369,0.00013973,2]